fUSD/lending_fUSD_20260116
["ID","MTS","AMOUNT","RATE_DAILY","PERIOD"]
[402193639,1768584779230,-296.91439708,0.00015145,2]
[402193640,1768584780718,-681.32613652,0.00015145,2]
[402193641,1768584781914,300.0,0.00015144,2]
[402193642,1768584783356,-231.34160624,0.00015145,2]
[402193643,1768584784977,159.0,0.00015144,2]
[402193644,1768584785961,-248.52735426,0.00015145,2]
[402193645,1768584789545,-278.87331618,0.00015145,2]
[402193646,1768584791977,-175.38621614,0.00015145,2]
[402193647,1768584793675,-300.98183784,0.00015145,2]
[402193648,1768584797524,-353.4292233,0.00015145,2]
[402193649,1768584799040,-250.23991406,0.00015145,2]
[402193650,1768584800506,-219.13058045,0.00015145,2]
[402193651,1768584802056,-403.17621516,0.00015145,2]
[402193652,1768584804070,-151.92555022,0.00015145,2]
[402193653,1768584805531,-205.70916156,0.00015145,2]
[402193654,1768584807609,-159.16048086,0.00015145,2]
[402193655,1768584811991,-195.0,0.00015145,2]
[402193656,1768584814027,-195.96,0.00015145,2]
[402193657,1768584816702,-347.38487229,0.00015145,2]
[402193658,1768584818659,-365.82908401,0.00015145,2]
[402193659,1768584819063,500.0,0.000147,2]
[402193660,1768584821086,-214.00115306,0.00015145,2]
[402193661,1768584826626,-269.40144431,0.00015145,2]
[402193662,1768584828571,-329.14058035,0.00015145,2]
[402193663,1768584831023,-300.0,0.00015145,2]
[402193664,1768584834807,-164.01221423,0.00015145,2]
[402193665,1768584837699,-188.45032922,0.00015145,2]
[402193666,1768584840101,2500.0,0.00015045,2]
[402193667,1768584840350,-211.45476909,0.00015145,2]
[402193668,1768584841291,300.0,0.00015144,2]
[402193669,1768584843943,-328.01806371,0.00015145,2]
[402193670,1768584846401,-162.41690171,0.00015145,2]
[402193671,1768584848929,-290.46004957,0.00015145,2]
[402193672,1768584852265,349.4187,0.00015045,2]
[402193673,1768584854014,-353.19308014,0.00015145,2]
[402193674,1768584856648,-187.12878608,0.00015145,2]
[402193675,1768584858108,-300.0,0.00015145,2]
[402193676,1768584861244,-276.31600114,0.00015145,2]
[402193677,1768584865135,-415.32326885,0.00015145,2]
[402193678,1768584871181,-277.0,0.00015145,2]
[402193679,1768584874821,-518.52371036,0.00015145,2]
[402193680,1768584880717,-226.12903702,0.00015145,2]
[402193681,1768584886317,-253.15261541,0.00015145,2]
[402193682,1768584890635,-195.98,0.00015145,2]
[402193683,1768584892154,-195.0,0.00015145,2]
[402193684,1768584894107,-414.17549553,0.00015145,2]
[402193685,1768584901226,300.0,0.00015144,2]
[402193686,1768584901256,300.0,0.00015144,2]
[402193687,1768584901286,1200.0,0.00015144,2]
[402193688,1768584901370,-216.56969934,0.00015145,2]
[402193689,1768584903420,-284.67298197,0.00015145,2]
[402193690,1768584904981,-250.0,0.00015145,2]
[402193691,1768584907626,-426.1348037,0.00015145,2]
[402193692,1768584909066,-432.28167555,0.00015145,2]
[402193693,1768584910624,-400.36306674,0.00015145,2]
[402193694,1768584916920,-274.76701349,0.00015145,2]
[402193695,1768584918386,-167.55253785,0.00015145,2]
[402193696,1768584922178,-193.87050116,0.00015145,2]
[402193697,1768584923754,-321.07094298,0.00015145,2]
[402193698,1768584923786,3940.5913,0.00015045,2]
[402193699,1768584923814,10000.01,0.00015045,2]
[402193700,1768584923837,3427.22563285,0.00015045,2]
[402193701,1768584925852,-391.9355504,0.00015145,2]
[402193702,1768584929445,-163.39236788,0.00015145,2]
[402193703,1768584931083,-273.86999409,0.00015145,2]
[402193704,1768584933119,-405.01039382,0.00015145,2]
[402193705,1768584935396,-158.76394628,0.00015145,2]
[402193706,1768584936600,-250.0,0.00015145,2]
[402193707,1768584939350,-290.77299761,0.00015145,2]
[402193708,1768584940834,-166.46688855,0.00015145,2]
[402193709,1768584943879,-326.1348037,0.00015145,2]
[402193710,1768584944661,1000.0,0.00015045,2]
[402193711,1768584946111,-253.76440543,0.00015145,2]
[402193712,1768584947441,-303.20627472,0.00015145,2]
[402193713,1768584950220,-166.64583723,0.00015145,2]
[402193714,1768584951658,-229.4356474,0.00015145,2]
[402193715,1768584953214,-274.80143649,0.00015145,2]
[402193716,1768584956566,-553.21704651,0.00015145,2]
[402193717,1768584956819,3148.8565,0.00015045,2]
[402193718,1768584957631,-343.85765004,0.00015145,2]
[402193719,1768584957989,10000.0,0.00018,30]
[402193720,1768584959029,-396.53446097,0.00015145,2]
[402193721,1768584960580,-460.35659123,0.00015145,2]
[402193722,1768584961227,300.0,0.00015144,2]
[402193723,1768584961822,300.0,0.00015144,2]
[402193724,1768584962567,-193.17305488,0.00015145,2]
[402193725,1768584964050,-287.44961372,0.00015145,2]
[402193726,1768584966186,-171.71190336,0.00015145,2]
[402193727,1768584967735,-294.38879118,0.00015145,2]
[402193728,1768584969329,1823.92786715,0.00015045,2]
[402193729,1768584969353,676.07213285,0.00015045,2]
[402193730,1768584972751,-305.61120882,0.00015145,2]
[402193731,1768584976707,-384.1489813,0.00015145,2]
[402193732,1768584982828,-213.45241374,0.00015145,2]
[402193733,1768584989515,-302.39860496,0.00015145,2]
[402193734,1768584990809,542.9785735,0.00015144,2]
[402193735,1768584990840,500.0,0.00015144,2]
[402193736,1768584990870,156.07268442,0.00015144,2]
[402193737,1768584990903,500.0,0.00015144,2]
[402193738,1768584990938,500.0,0.00015144,2]
[402193739,1768584990981,500.0,0.00015144,2]
[402193740,1768584991047,500.0,0.00015144,2]
[402193741,1768584991094,596.68480008,0.00015144,2]
[402193742,1768584991131,500.0,0.00015144,2]
[402193743,1768584991232,500.0,0.00015144,2]
[402193744,1768584991273,500.0,0.00015144,2]
[402193745,1768584991319,500.0,0.00015144,2]
[402193746,1768584991361,500.0,0.00015144,2]
[402193747,1768584991403,500.0,0.00015144,2]
[402193748,1768584991445,500.0,0.00015144,2]
[402193749,1768584991490,500.0,0.00015144,2]
[402193750,1768584991533,500.0,0.00015144,2]
[402193751,1768584991580,500.0,0.00015144,2]
[402193752,1768584991619,500.0,0.00015144,2]
[402193753,1768584991663,28.20180915,0.00015144,2]
[402193754,1768584991690,471.79819085,0.00015144,2]
[402193755,1768584991726,500.0,0.00015144,2]
[402193756,1768584991770,500.0,0.00015144,2]
[402193757,1768584991837,500.0,0.00015144,2]
[402193758,1768584991889,500.0,0.00015144,2]
[402193759,1768584991931,500.0,0.00015144,2]
[402193760,1768584991980,500.0,0.00015144,2]
[402193761,1768584992020,500.0,0.00015144,2]
[402193762,1768584992061,500.0,0.00015144,2]
[402193763,1768584992111,500.0,0.00015144,2]
[402193764,1768584992151,500.0,0.00015144,2]
[402193765,1768584992198,500.0,0.00015144,2]
[402193766,1768584992244,500.0,0.00015144,2]
[402193767,1768584992289,500.0,0.00015144,2]
[402193768,1768584992335,500.0,0.00015144,2]
[402193769,1768584992380,500.0,0.00015144,2]
[402193770,1768584992424,500.0,0.00015144,2]
[402193771,1768584992840,500.0,0.00015144,2]
[402193772,1768584992891,500.0,0.00015144,2]
[402193773,1768584992952,500.0,0.00015144,2]
[402193774,1768584992997,28.21180915,0.00015144,2]
[402193775,1768584993024,471.78819085,0.00015144,2]
[402193776,1768584993067,500.0,0.00015144,2]
[402193777,1768584993115,500.0,0.00015144,2]
[402193778,1768584993164,500.0,0.00015144,2]
[402193779,1768584993207,500.0,0.00015144,2]
[402193780,1768584993247,500.0,0.00015144,2]
[402193781,1768584993291,500.0,0.00015144,2]
[402193782,1768584993328,500.0,0.00015144,2]
[402193783,1768584993401,500.0,0.00015144,2]
[402193784,1768584993498,500.0,0.00015144,2]
[402193785,1768584993552,470.01352174,0.00015144,2]
[402193786,1768584993619,500.0,0.00015144,2]
[402193787,1768584993658,500.0,0.00015144,2]
[402193788,1768584993701,500.0,0.00015144,2]
[402193789,1768584993746,500.0,0.00015144,2]
[402193790,1768584993786,500.0,0.00015144,2]
[402193791,1768584993831,500.0,0.00015144,2]
[402193792,1768584993958,500.0,0.00015144,2]
[402193793,1768584994009,500.0,0.00015144,2]
[402193794,1768584998186,-195.0,0.00015145,2]
[402193795,1768584999389,-376.40370444,0.00015145,2]
[402193796,1768585000905,-320.29133073,0.00015145,2]
[402193797,1768585002990,-607.19801074,0.00015145,2]
[402193798,1768585005394,-281.37950209,0.00015145,2]
[402193799,1768585006907,500.0,0.00015144,2]
[402193800,1768585006944,500.0,0.00015144,2]
[402193801,1768585006981,500.0,0.00015144,2]
[402193802,1768585007025,500.0,0.00015144,2]
[402193803,1768585007063,500.0,0.00015144,2]
[402193804,1768585007119,500.0,0.00015144,2]
[402193805,1768585007168,500.0,0.00015144,2]
[402193806,1768585007208,500.0,0.00015144,2]
[402193807,1768585007253,500.0,0.00015144,2]
[402193808,1768585007299,500.0,0.00015144,2]
[402193809,1768585007343,500.0,0.00015144,2]
[402193810,1768585007390,500.0,0.00015144,2]
[402193811,1768585007437,500.0,0.00015144,2]
[402193812,1768585007482,500.0,0.00015144,2]
[402193813,1768585007542,500.0,0.00015144,2]
[402193814,1768585007581,500.0,0.00015144,2]
[402193815,1768585007621,500.0,0.00015144,2]
[402193816,1768585007664,500.0,0.00015144,2]
[402193817,1768585007703,470.01352174,0.00015144,2]
[402193818,1768585007757,500.0,0.00015144,2]
[402193819,1768585007799,29.99647826,0.00015144,2]
[402193820,1768585007826,470.00352174,0.00015144,2]
[402193821,1768585007883,500.0,0.00015144,2]
[402193822,1768585007941,500.0,0.00015144,2]
[402193823,1768585007986,500.0,0.00015144,2]
[402193824,1768585008030,500.0,0.00015144,2]
[402193825,1768585008732,-281.0,0.00015145,2]
[402193826,1768585012073,-192.71582831,0.00015145,2]
[402193827,1768585016588,-404.2237676,0.00015145,2]
[402193828,1768585019857,-293.67615383,0.00015145,2]
[402193829,1768585022015,-292.88949726,0.00015145,2]
[402193830,1768585025138,-174.6720109,0.00015145,2]
[402193831,1768585026504,-495.81137759,0.00015145,2]
[402193832,1768585029025,-177.82724566,0.00015145,2]
[402193833,1768585031049,-347.01512936,0.00015145,2]
[402193834,1768585033530,4093.08843,0.00015069,2]
[402193835,1768585033697,-374.66500799,0.00015145,2]
[402193836,1768585036260,-324.8794782,0.00015145,2]
[402193837,1768585038220,-340.67402245,0.00015145,2]
[402193838,1768585040565,-197.7280692,0.00015145,2]
[402193839,1768585042809,-500.18580306,0.00015145,2]
[402193840,1768585045857,-342.84898849,0.00015145,2]
[402193841,1768585045972,1584.961707,0.00015069,2]
[402193842,1768585048869,-265.59194196,0.00015145,2]
[402193843,1768585051612,-294.27108077,0.00015145,2]
[402193844,1768585054244,-230.42688067,0.00015145,2]
[402193845,1768585057848,514.07356127,0.00015045,2]
[402193846,1768585059911,1337.88277999,0.00015069,2]
[402193847,1768585059934,123.32964701,0.00015069,2]
[402193848,1768585060799,-468.42587056,0.00015145,2]
[402193849,1768585063382,-258.83768649,0.00015145,2]
[402193850,1768585068294,-174.1327799,0.00015145,2]
[402193851,1768585069444,9876.68035299,0.00015045,2]
[402193852,1768585069467,10000.01,0.00015045,2]
[402193853,1768585069489,10000.01,0.00015045,2]
[402193854,1768585069511,3336.29684701,0.00015045,2]
[402193855,1768585069790,-229.28632675,0.00015145,2]
[402193856,1768585072362,-184.72499494,0.00015145,2]
[402193857,1768585074785,-432.43677771,0.00015145,2]
[402193858,1768585077242,-324.36711403,0.00015145,2]
[402193859,1768585080414,-214.65359386,0.00015145,2]
[402193860,1768585082700,-203.09776476,0.00015145,2]
[402193861,1768585084223,-239.48637239,0.00015145,2]
[402193862,1768585086226,-155.42428632,0.00015145,2]
[402193863,1768585087751,-241.69200966,0.00015145,2]
[402193864,1768585090309,-245.23471979,0.00015145,2]
[402193865,1768585093148,-402.5125319,0.00015145,2]
[402193866,1768585095330,-817.86585705,0.00015145,2]
[402193867,1768585097278,-282.97186034,0.00015145,2]
[402193868,1768585097434,1200.0,0.00015144,2]
[402193869,1768585100578,1000.0,0.00015045,2]
[402193870,1768585100767,-222.07799881,0.00015145,2]
[402193871,1768585102712,-214.7707599,0.00015145,2]
[402193872,1768585104178,-255.88840929,0.00015145,2]
[402193873,1768585105969,-596.10329838,0.00015145,2]
[402193874,1768585108623,-162.14755588,0.00015145,2]
[402193875,1768585110065,-601.58032445,0.00015145,2]
[402193876,1768585111556,-500.0,0.00015145,2]
[402193877,1768585112946,-342.51254721,0.00015145,2]
[402193878,1768585114022,1071.3921,0.00015045,2]
[402193879,1768585116326,-267.66268331,0.00015145,2]
[402193880,1768585118678,-300.82847297,0.00015145,2]
[402193881,1768585119356,2500.0,0.00015045,2]
[402193882,1768585120652,-152.68088658,0.00015145,2]
[402193883,1768585121431,10000.0,0.00030136,120]
[402193884,1768585123385,-485.88281398,0.00015145,2]
[402193885,1768585125555,-222.00260049,0.00015145,2]
[402193886,1768585127679,-176.0904459,0.00015145,2]
[402193887,1768585131082,-154.57460335,0.00015145,2]
[402193888,1768585134880,-331.84180407,0.00015145,2]
[402193889,1768585137509,-224.22639518,0.00015145,2]
[402193890,1768585140627,-215.14510851,0.00015145,2]
[402193891,1768585141931,300.0,0.00015144,2]
[402193892,1768585142656,-374.12062636,0.00015145,2]
[402193893,1768585145314,300.0,0.00015144,2]
[402193894,1768585145370,-207.1827983,0.00015145,2]
[402193895,1768585148615,-200.60829744,0.00015145,2]
[402193896,1768585153882,292.32105299,0.00014499,2]
[402193897,1768585153913,10000.01,0.00014499,2]
[402193898,1768585153938,10000.01,0.00014499,2]
[402193899,1768585153963,10000.01,0.00014499,2]
[402193900,1768585153985,10000.01,0.00014499,2]
[402193901,1768585154009,9707.68894701,0.00014499,2]
[402193902,1768585183476,-505.56703205,0.00015145,2]
[402193903,1768585185457,-170.81596407,0.00015145,2]
[402193904,1768585190160,-300.0,0.00015145,2]
[402193905,1768585201188,300.0,0.00015144,2]
[402193906,1768585201227,300.0,0.00015144,2]
[402193907,1768585201426,1200.0,0.00015144,2]
[402193908,1768585201508,300.0,0.00015144,2]
[402193909,1768585201672,-392.81808231,0.00015145,2]
[402193910,1768585215644,166.66,0.00014879,2]
[402193911,1768585219403,7733.35,0.00015045,2]
[402193912,1768585219438,10000.01,0.00015045,2]
[402193913,1768585219472,10000.01,0.00015045,2]
[402193914,1768585219497,5479.6272,0.00015045,2]
[402193915,1768585224071,4520.3828,0.00014459,2]
[402193916,1768585224094,1154.4272,0.00014459,2]
[402193917,1768585250176,1000.0,0.00015045,2]
[402193918,1768585253465,216.18,0.00014454,2]
[402193921,1768585262247,7629.4028,0.00015045,2]
[402193922,1768585262271,10000.01,0.00015045,2]
[402193923,1768585262296,10000.01,0.00015045,2]
[402193924,1768585262319,10000.01,0.00015045,2]
[402193925,1768585262341,10000.01,0.00015045,2]
[402193926,1768585262364,10000.01,0.00015045,2]
[402193927,1768585262386,9461.4664,0.00015045,2]
[402193928,1768585268436,1599.661,0.00015045,2]
[402193929,1768585321346,300.0,0.00015144,2]
[402193930,1768585321836,300.0,0.00015144,2]
[402193931,1768585321950,500.0,0.00015144,2]
[402193932,1768585321985,500.0,0.00015144,2]
[402193933,1768585322020,500.0,0.00015144,2]
[402193934,1768585322059,500.0,0.00015144,2]
[402193935,1768585322122,500.0,0.00015144,2]
[402193936,1768585322156,373.98918261,0.00015144,2]
[402193937,1768585322211,500.0,0.00015144,2]
[402193938,1768585322293,500.0,0.00015144,2]
[402193940,1768585327675,207.4,0.00015145,2]
[402193943,1768585331410,500.0,0.00015145,2]
[402193944,1768585332000,500.0,0.00015145,2]
[402193945,1768585332631,500.0,0.00015145,2]
[402193946,1768585333670,500.0,0.00015145,2]
[402193947,1768585334353,500.0,0.00015145,2]
[402193948,1768585335261,525.56138561,0.00015145,2]
[402193949,1768585347758,693.39843178,0.00015045,2]
[402193950,1768585347782,10000.01,0.00015045,2]
[402193951,1768585347806,10000.01,0.00015045,2]
[402193952,1768585347828,10000.01,0.00015045,2]
[402193953,1768585347851,2519.56876822,0.00015045,2]
[402193954,1768585356531,500.0,0.00015145,2]
[402193955,1768585359264,151.0,0.00015145,2]
[402193956,1768585359865,151.0,0.00015145,2]
[402193957,1768585360472,151.0,0.00015145,2]
[402193958,1768585361079,151.0,0.00015145,2]
[402193959,1768585361715,151.0,0.00015145,2]
[402193960,1768585362323,151.0,0.00015145,2]
[402193961,1768585362965,151.0,0.00015145,2]
[402193962,1768585363572,151.0,0.00015145,2]
[402193963,1768585364186,151.0,0.00015145,2]
[402193964,1768585364789,151.0,0.00015145,2]
[402193965,1768585365696,151.0,0.00015145,2]
[402193966,1768585373261,741.27821346,0.00015045,2]
[402193970,1768585399263,1000.0,0.00015045,2]
[402193971,1768585401949,964.27280974,0.00030136,120]
[402193972,1768585410170,1346.95,0.00014492,2]
[402193975,1768585433969,2231.21301832,0.00015045,2]
[402193976,1768585433994,10000.01,0.00015045,2]
[402193977,1768585434019,3654.3999257,0.00015045,2]
[402193985,1768585463373,200.0,0.00014475,2]
[402193986,1768585490005,324.11052088,0.00015456,30]
[402193987,1768585490475,855.33279254,0.00016456,30]
[402193988,1768585491748,1508.90843188,0.00016456,30]
[402193989,1768585492095,2257.23677221,0.00016456,30]
[402193990,1768585492860,3054.1203,0.00016456,30]
[402193991,1768585497049,6145.6100743,0.00015045,2]
[402193992,1768585497072,10000.01,0.00015045,2]
[402193993,1768585497094,617.0381257,0.00015045,2]
[402193994,1768585497821,625.72,0.00015069,2]
[402193995,1768585501261,300.0,0.00015144,2]
[402193996,1768585501299,1200.0,0.00015144,2]
[402193997,1768585502099,300.0,0.00015144,2]
[402193998,1768585510217,1329.47146,0.00015069,2]
[402193999,1768585511131,430.44324251,0.00015144,2]
[402194000,1768585521818,1852.42,0.00014468,2]
[402194001,1768585533777,1000.0,0.00015045,2]
[402194002,1768585561346,300.0,0.00015144,2]
[402194003,1768585608124,-373.5212304,0.00015145,2]
[402194004,1768585619908,1280.0,0.00014686,2]
[402194005,1768585620982,11800.0,0.000149,5]
[402194006,1768585632009,151.0,0.00015145,2]
[402194007,1768585648154,500.0,0.00015145,2]
[402194012,1768585661301,4916.59,0.00015045,2]
[402194013,1768585661334,10000.01,0.00015045,2]
[402194014,1768585661359,10000.01,0.00015045,2]
[402194015,1768585661726,10000.01,0.00015045,2]
[402194016,1768585661753,10000.01,0.00015045,2]
[402194017,1768585661779,10000.01,0.00015045,2]
[402194018,1768585661805,10000.01,0.00015045,2]
[402194019,1768585661829,10000.01,0.00015045,2]
[402194020,1768585661857,10000.01,0.00015045,2]
[402194021,1768585661882,10000.01,0.00015045,2]
[402194022,1768585662399,-200.01647107,0.00015045,2]
[402194024,1768585664496,-410.73104707,0.00015045,2]
[402194025,1768585670213,-178.67630316,0.00015045,2]
[402194026,1768585671638,-504.05363651,0.00015045,2]
[402194027,1768585676844,-159.98381343,0.00015045,2]
[402194028,1768585678389,-416.31085346,0.00015045,2]
[402194029,1768585681042,-324.96736,0.00015045,2]
[402194030,1768585681818,-300.0,0.00015044,2]
[402194031,1768585681852,-300.0,0.00015044,2]
[402194032,1768585682855,-5294.44230561,0.00015045,2]
[402194033,1768585682902,-10000.01,0.00015045,2]
[402194034,1768585682959,-234.69378492,0.00015045,2]
[402194035,1768585685067,-257.11517502,0.00015045,2]
[402194036,1768585685219,-10000.01,0.00015045,2]
[402194037,1768585685340,-10000.01,0.00015045,2]
[402194038,1768585685463,-10000.01,0.00015045,2]
[402194039,1768585685591,-10000.01,0.00015045,2]
[402194040,1768585685702,-10000.01,0.00015045,2]
[402194041,1768585687075,-170.52600367,0.00015045,2]
[402194042,1768585688132,-10000.01,0.00015045,2]
[402194043,1768585688397,-10000.01,0.00015045,2]
[402194044,1768585688499,-10000.01,0.00015045,2]
[402194045,1768585689245,-249.46925352,0.00015045,2]
[402194046,1768585690986,-293.30879909,0.00015045,2]
[402194047,1768585693762,-333.48734208,0.00015045,2]
[402194048,1768585697563,-183.56049534,0.00015045,2]
[402194049,1768585699480,-151.0,0.00015042,2]
[402194050,1768585699501,-4.95336349,0.00015042,2]
[402194051,1768585701539,-146.04663651,0.00015042,2]
[402194052,1768585701561,-151.0,0.00015042,2]
[402194053,1768585701586,-17.95992857,0.00015045,2]
[402194054,1768585703587,-221.1910972,0.00015045,2]
[402194055,1768585705245,-295.23098457,0.00015045,2]
[402194056,1768585709423,-394.01284199,0.00015045,2]
[402194057,1768585710965,-250.0,0.00015045,2]
[402194058,1768585714740,-319.91859461,0.00015045,2]
[402194059,1768585716305,-248.6104225,0.00015045,2]
[402194060,1768585719970,-261.65423823,0.00015045,2]
[402194061,1768585723257,-160.74125026,0.00015045,2]
[402194062,1768585725855,-171.98258184,0.00015045,2]
[402194063,1768585728597,-157.01150717,0.00015045,2]
[402194064,1768585751557,-273.52,0.00014464,2]
[402194065,1768585751580,-226.6658,0.00015044,2]
[402194066,1768585753278,-300.0,0.00014754,2]
[402194067,1768585753300,-300.0,0.00014943,2]
[402194068,1768585753322,-62.61526,0.00014943,2]
[402194069,1768585767063,-123.04623566,0.00014943,2]
[402194070,1768585767086,-176.95376434,0.00014945,2]
[402194071,1768585769846,-537.19894017,0.00014945,2]
[402194083,1768585831564,-1200.0,0.00014944,2]
[402194084,1768585831574,-274.0,0.00014944,2]
[402194085,1768585831583,-600.0,0.00014944,2]
[402194086,1768585831593,-3162.96289549,0.00014945,2]
[402194087,1768585831602,-236.7828,0.00014945,2]
[402194088,1768585831611,-500.1858,0.00014945,2]
[402194089,1768585831620,-3096.2523,0.00014945,2]
[402194090,1768585831630,-151.0,0.00015042,2]
[402194091,1768585831640,-151.0,0.00015042,2]
[402194092,1768585831649,-151.0,0.00015042,2]
[402194093,1768585831658,-17045.81696606,0.00015045,2]
[402194094,1768585831743,-1627.60462382,0.00015045,2]
[402194095,1768585831758,-79332.89861249,0.00015045,2]
[402194113,1768585837666,-537.19894,0.00014869,2]
[402194114,1768585837676,-103.19853628,0.00014945,2]
[402194115,1768585837687,-837.57754225,0.00014945,2]
[402194116,1768585837771,-25.85742147,0.00014945,2]
[402194117,1768585837780,-514122.61706317,0.00015045,2]
[402194142,1768585841672,-1.7e-07,0.00015045,2]
[402194143,1768585841757,-1742.5430045,0.00015045,2]
[402194144,1768585841777,-631.42996771,0.00015045,2]
[402194145,1768585841789,-188870.66367119,0.00015045,2]
[402194146,1768585841798,-426.4358,0.00015045,2]
[402194147,1768585841807,-2500.0,0.00015045,2]
[402194148,1768585841817,-741.07944108,0.00015045,2]
[402194149,1768585841827,-234.22420722,0.00015045,2]
[402194150,1768585841836,-424.86467684,0.00015117,2]
[402194151,1768585841846,-286.2884,0.00015145,2]
[402194152,1768585841855,-195.0,0.00015145,2]
[402194153,1768585841866,-16206.14524433,0.000152,2]
[402194154,1768585841876,-500.0,0.00015205,2]
[402194155,1768585841886,-1346.95,0.00015217,2]
[402194156,1768585841899,-424.86467682,0.00015221,2]
[402194157,1768585841909,-13108.08453344,0.00015224,2]
[402194158,1768585841918,-273.52,0.00015268,2]
[402194159,1768585841928,-530.26401253,0.00015278,2]
[402194160,1768585841939,-151.0,0.00015285,2]
[402194161,1768585841948,-151.0,0.00015285,2]
[402194162,1768585841958,-179.0,0.00015287,2]
[402194163,1768585841969,-500.0,0.00015287,2]
[402194164,1768585841978,-500.0,0.00015287,2]
[402194165,1768585841988,-150.0,0.00015287,2]
[402194166,1768585841997,-500.0,0.00015287,2]
[402194167,1768585842007,-316.10140367,0.00015287,2]
[402194168,1768585842017,-500.0,0.00015287,2]
[402194169,1768585842027,-494.35112977,0.00015287,2]
[402194170,1768585842036,-497271.7137773,0.00015288,2]
[402194171,1768585842047,-2117.40399523,0.00015324,2]
[402194172,1768585842056,-424.86467682,0.00015324,2]
[402194173,1768585842065,-507.54382529,0.000154,2]
[402194174,1768585842075,-500.0,0.00015423,2]
[402194175,1768585842084,-3959.34,0.00015424,2]
[402194176,1768585842093,-150.0,0.00015424,2]
[402194177,1768585842103,-150.0,0.00015424,2]
[402194178,1768585842112,-500.0,0.00015424,2]
[402194179,1768585842122,-500.0,0.00015424,2]
[402194180,1768585842131,-500.0,0.00015424,2]
[402194181,1768585842141,-500.0,0.00015424,2]
[402194182,1768585842150,-500.0,0.00015424,2]
[402194183,1768585842159,-500.86300642,0.00015424,2]
[402194184,1768585842169,-500.0,0.00015424,2]
[402194185,1768585842178,-500.0,0.00015424,2]
[402194186,1768585842187,-472.73300168,0.00015424,2]
[402194187,1768585842197,-507.08916018,0.00015424,2]
[402194188,1768585842208,-672.92,0.00015424,2]
[402194189,1768585842217,-187.79,0.00015447,2]
[402194190,1768585842226,-741.07944102,0.00015453,2]
[402194191,1768585842236,-166.66,0.00015493,2]
[402194192,1768585842246,-8663.44,0.0001551,2]
[402194193,1768585842255,-13108.08453336,0.00015521,2]
[402194194,1768585842264,-166.66,0.00015569,2]
[402194195,1768585842274,-151.0,0.00015604,2]
[402194196,1768585842283,-151.0,0.00015604,2]
[402194197,1768585842293,-151.0,0.00015609,2]
[402194198,1768585842302,-302.88589932,0.00015609,2]
[402194199,1768585842312,-250.0,0.00015609,2]
[402194200,1768585842322,-574.12855637,0.00015609,2]
[402194201,1768585842332,-250.0,0.00015609,2]
[402194202,1768585842341,-500.0,0.00015609,2]
[402194203,1768585842351,-500.0,0.00015609,2]
[402194204,1768585842360,-250.0,0.00015609,2]
[402194205,1768585842370,-500.0,0.00015609,2]
[402194206,1768585842379,-507.70133898,0.00015609,2]
[402194207,1768585842388,-250.0,0.00015609,2]
[402194208,1768585842398,-500.0,0.00015609,2]
[402194209,1768585842407,-250.0,0.00015609,2]
[402194210,1768585842417,-555.68208505,0.00015609,2]
[402194211,1768585842427,-174.61919142,0.00015609,2]
[402194212,1768585842436,-250.0,0.00015609,2]